bitfinex/quotes_ETHUSD_20241119
["timestamp","ask_amount","ask_price","bid_price","bid_amount"]
[1731989717398,3.97059,3152.2,3151.6,3.49001]
[1731989717399,0.7982,3152.2,3151.6,3.49001]
[1731989717556,0.7982,3152.9,3152.1,3.1724]
[1731989717756,3.17165,3153.0,3152.4,0.3171]
[1731989718196,0.02978395,3152.9,3152.4,0.3171]
[1731989718402,0.02978395,3152.9,3152.6,0.3171]
[1731989718706,3.17148,3153.1,3152.6,0.3171]
[1731989718870,0.03472435,3152.8,3152.6,0.3171]
[1731989719075,3.17148,3153.1,3152.6,0.3171]
[1731989719295,3.03209679,3153.0,3152.6,0.3171]
[1731989719525,3.03209679,3153.0,3152.4,3.48928]
[1731989719655,3.0,3152.9,3152.4,0.3171]
[1731989719857,0.03472435,3152.8,3152.4,0.3171]
[1731989720175,6.20655435,3152.8,3152.4,0.3171]
[1731989720355,6.20655435,3152.8,3152.2,0.3171]
[1731989720561,6.20655435,3152.8,3152.2,3.48948]
[1731989722223,0.03472435,3152.8,3152.4,0.3171]
[1731989722719,3.0,3153.0,3152.4,0.3171]
[1731989722720,0.03470076,3152.7,3152.4,0.3171]
[1731989723105,0.617151,3152.9,3152.4,0.3171]
[1731989723307,3.0,3152.8,3152.4,0.3171]
[1731989724729,0.617151,3152.9,3151.8,0.3171]
[1731989725041,6.17161,3153.0,3152.4,0.3171]
[1731989725700,3.0,3153.1,3152.6,0.3171]
[1731989725939,3.317139,3153.1,3152.6,0.3171]
[1731989726818,3.488619,3153.1,3152.6,0.3171]
[1731989727245,3.17166,3153.0,3152.4,0.3171]
[1731989727646,3.17166,3153.0,3152.4,3.48928]
[1731989728362,3.17166,3153.0,3152.2,3.17237]
[1731989728363,3.17169,3152.9,3152.5,0.3171]
[1731989728534,0.8266,3152.8,3152.5,0.3171]
[1731989729338,3.17189,3152.7,3152.2,0.3171]
[1731989729637,3.172,3152.6,3152.2,0.3171]
[1731989729840,3.17218,3152.4,3152.2,0.3171]
[1731989730136,3.17228,3152.3,3152.2,0.3171]
[1731989730341,3.17251,3152.1,3151.5,0.3171]
[1731989730637,3.17253,3152.1,3151.5,0.3171]
[1731989731320,3.17253,3152.1,3151.5,3.49018]
[1731989731524,3.17239,3152.2,3151.7,0.3171]
[1731989731725,0.7785,3152.3,3151.7,3.48998]
[1731989732524,3.95086,3152.3,3151.6,0.3171]
[1731989732767,3.95086,3152.3,3151.8,0.3171]
[1731989733524,3.95058,3152.5,3152.0,0.3171]
[1731989734269,3.17208,3152.5,3152.0,0.3171]
[1731989734584,3.0,3152.5,3152.0,3.48966]
[1731989734933,3.0,3152.5,3152.1,0.3171]
[1731989737575,3.0,3152.7,3152.1,0.3171]
[1731989737740,0.7798,3152.8,3152.2,0.3171]
[1731989737947,3.0,3152.8,3152.4,0.3171]
[1731989738383,0.317139,3153.1,3152.4,0.3171]
[1731989738384,6.488679,3153.1,3152.4,3.48928]
[1731989738587,3.317139,3153.1,3152.4,3.48928]
[1731989738744,3.0,3152.9,3152.4,3.48928]
[1731989739474,3.0,3152.9,3152.5,0.3171]
[1731989741963,3.17141,3153.2,3152.5,0.317243]
[1731989742298,3.17105,3153.6,3153.0,0.3171]
[1731989743081,3.17105,3153.6,3153.0,3.48867]
[1731989743247,3.98942,3153.8,3153.0,3.48867]
[1731989743885,3.17089,3153.7,3153.0,3.48867]
[1731989744088,3.17089,3153.7,3152.9,0.3171]
[1731989744402,3.17123,3153.4,3152.9,0.3171]
[1731989744547,3.17108,3153.5,3152.9,0.3171]
[1731989745249,3.17119,3153.4,3152.9,0.3171]
[1731989745466,3.17119,3153.4,3152.7,0.3171]
[1731989745682,3.17119,3153.4,3152.7,3.48891]
[1731989746197,3.569938,3153.6,3152.7,3.48891]
[1731989746346,3.17128,3153.3,3152.7,3.48891]
[1731989747199,3.17128,3153.3,3152.6,0.3171]
[1731989747493,3.17175,3152.9,3152.6,0.3171]
[1731989747655,3.17188,3152.7,3152.6,0.3171]
[1731989748171,3.17188,3152.7,3152.2,0.3171]
[1731989750304,4.00337,3153.2,3152.2,0.3171]
[1731989750452,6.34308,3153.1,3152.5,0.3171]
[1731989750656,3.17152,3153.1,3152.5,0.3171]
[1731989751621,0.7597,3153.4,3152.6,0.3171]
[1731989751622,3.17138,3153.2,3152.6,0.3171]
[1731989752468,6.17109,3153.5,3152.8,3.48888]
[1731989752469,3.17109,3153.5,3152.8,3.48888]
[1731989752667,3.17109,3153.5,3152.8,3.837768]
[1731989752972,3.17109,3153.5,3153.0,0.3171]
[1731989753385,3.17089,3153.7,3153.0,0.3171]
[1731989753645,3.17089,3153.7,3153.0,3.48866]
[1731989754268,3.17089,3153.7,3153.0,3.17188]
[1731989754468,3.17089,3153.7,3153.1,0.3169]
[1731989754911,3.171,3153.6,3153.2,0.3169]
[1731989755216,3.17128,3153.3,3153.2,0.3169]
[1731989755428,6.96388,3153.3,3153.2,0.3169]
[1731989755923,6.93428,3153.3,3153.2,0.3169]
[1731989756821,3.0,3153.2,3152.0,0.3169]
[1731989757025,0.693428,3153.2,3152.0,1.512128]
[1731989757319,3.97374,3152.7,3152.0,3.48946]
[1731989757523,3.17198,3152.6,3152.0,3.48946]
[1731989758798,3.17198,3152.6,3151.6,6.06486746]
[1731989758799,0.8018,3152.7,3151.9,0.3169]
[1731989759007,3.17225,3152.4,3151.9,0.3169]
[1731989759348,3.17226,3152.4,3151.9,0.3169]
[1731989759681,3.17226,3152.4,3151.9,0.64859]
[1731989760692,3.17198,3152.6,3151.9,0.64859]
[1731989760908,3.17217,3152.5,3151.9,0.64859]
[1731989761085,3.1722,3152.4,3151.9,0.64859]
[1731989762502,3.1722,3152.4,3152.0,0.3169]
[1731989762819,3.1722,3152.4,3151.8,0.3169]
[1731989763002,3.1722,3152.4,3151.8,1.25796575]
[1731989764030,3.1722,3152.4,3151.8,4.43073575]
[1731989764699,3.1722,3152.4,3151.8,1.25796575]
[1731989765413,3.1722,3152.4,3151.9,0.3169]
[1731989765414,3.17245,3152.2,3151.9,0.3169]
[1731989765832,3.17268,3151.9,3151.4,0.3169]
[1731989766139,3.17309,3151.5,3151.4,0.3169]
[1731989766284,7.8125354,3151.5,3151.4,0.3169]
[1731989766488,4.63811734,3151.6,3151.3,0.3169]
[1731989766704,3.17286,3151.8,3151.3,0.3169]
[1731989766917,3.1729,3151.7,3151.3,0.3169]
[1731989767133,3.1731,3151.5,3151.3,0.3169]
[1731989767307,3.17319,3151.4,3151.3,0.3169]
[1731989767496,3.17319,3151.4,3150.9,0.3032]
[1731989767690,3.17331,3151.3,3151.0,0.3169]
[1731989769205,3.1731,3151.5,3151.0,0.3169]
[1731989770009,2.8561,3151.5,3151.0,0.3169]
[1731989771357,2.8561,3151.5,3151.2,0.3169]
[1731989771849,3.17271,3151.9,3151.2,0.3169]
[1731989772060,3.173,3151.6,3151.2,0.3169]
[1731989772217,3.1728,3151.8,3151.2,0.69815533]
[1731989772556,3.66479,3152.0,3151.2,0.3169]
[1731989772557,3.17268,3151.9,3151.2,0.3169]
[1731989772852,3.17296,3151.7,3151.2,0.3169]
[1731989773015,3.17296,3151.7,3151.2,0.69815133]
[1731989773216,3.17268,3151.9,3151.2,0.69815133]
[1731989773520,3.66485,3152.0,3151.2,0.3169]
[1731989773734,3.17288,3151.8,3151.2,0.3169]
[1731989773945,0.7905,3152.3,3151.5,0.62]
[1731989774251,3.17209,3152.5,3152.1,0.3169]
[1731989774797,0.7905,3152.9,3152.1,0.3169]
[1731989774996,3.1718,3152.8,3152.1,0.3169]
[1731989775201,3.17169,3152.9,3152.3,3.48918]
[1731989775494,3.17186,3152.8,3152.3,0.665818]
[1731989775794,3.17205,3152.6,3152.3,0.3169]
[1731989776027,3.17218,3152.4,3152.3,0.3169]
[1731989776303,3.885653,3152.4,3152.3,0.3169]
[1731989776655,4.435653,3152.4,3152.3,0.3169]
[1731989776853,8.226153,3152.4,3152.3,0.3169]
[1731989777169,3.17305,3151.6,3151.1,0.3169]
[1731989777971,3.17282,3151.8,3151.1,0.3169]
[1731989778170,3.17307,3151.6,3151.1,0.3169]
[1731989778776,3.17282,3151.8,3151.1,0.3169]
[1731989779375,3.17291,3151.7,3151.1,0.3169]
[1731989779719,3.17282,3151.8,3151.1,0.3489]
[1731989779894,3.1729,3151.7,3151.1,3.52238]
[1731989780205,3.1729,3151.7,3151.1,0.3489]
[1731989780798,3.17309,3151.5,3151.1,0.3489]
[1731989781366,3.96349,3151.6,3151.1,0.3489]
[1731989781611,3.17285,3151.8,3151.3,0.3169]
[1731989781770,0.7905,3151.9,3151.3,0.3489]
[1731989782106,3.17299,3151.6,3151.3,0.3489]
[1731989782397,3.17279,3151.8,3151.3,0.3489]
[1731989782596,3.17289,3151.7,3151.4,0.3169]
[1731989783298,3.96324,3151.9,3151.4,0.3169]
[1731989783511,3.17287,3151.8,3151.4,0.3169]
[1731989783654,3.17287,3151.8,3151.3,0.032]
[1731989783859,0.7905,3152.3,3151.4,0.62]
[1731989784060,3.17266,3152.0,3151.4,0.62]
[1731989784305,3.17285,3151.8,3151.4,0.62]
[1731989784606,3.17265,3152.0,3151.4,0.3169]
[1731989784759,3.807241,3151.9,3151.4,0.3169]
[1731989784954,3.17272,3151.9,3151.3,0.3489]
[1731989785185,3.1729,3151.7,3151.3,0.3489]
[1731989785972,3.9634,3151.7,3151.3,0.032]
[1731989786173,3.1731,3151.5,3151.3,0.032]
[1731989786381,3.17299,3151.6,3151.3,0.032]
[1731989789015,3.1726,3152.0,3151.3,0.032]
[1731989789194,3.1726,3152.0,3151.6,0.3169]
[1731989789372,3.17239,3152.2,3151.6,0.0311]
[1731989789569,3.17239,3152.2,3151.6,0.348]
[1731989789864,3.17239,3152.2,3151.6,3.52091]
[1731989790993,0.7764,3152.3,3151.6,3.52091]
[1731989790994,3.9487,3152.3,3151.6,0.3169]
[1731989791179,3.17258,3152.1,3151.6,0.3169]
[1731989791391,3.94872,3152.3,3151.6,0.3169]
[1731989791714,3.17261,3152.0,3151.6,0.3169]
[1731989793819,3.17259,3152.0,3151.6,0.3169]
[1731989794121,3.17259,3152.0,3151.5,0.3031]
[1731989794122,3.17206,3152.6,3152.2,0.3169]
[1731989794428,0.8198,3152.9,3152.2,0.3169]
[1731989794583,3.1716,3153.0,3152.4,0.3169]
[1731989795190,3.48886,3152.9,3152.4,0.3169]
[1731989795835,3.48886,3152.9,3152.2,0.3169]
[1731989795984,3.17178,3152.8,3152.2,0.3169]
[1731989796191,3.17178,3152.8,3152.2,3.48927]
[1731989796495,3.17178,3152.8,3152.2,0.3169]
[1731989796878,3.17178,3152.8,3152.2,3.48928]
[1731989797527,3.17178,3152.8,3152.2,0.3169]
[1731989797834,3.17198,3152.6,3152.2,0.3169]
[1731989797997,0.8315,3152.8,3152.3,0.3169]
[1731989798326,3.17218,3152.4,3152.3,0.3169]
[1731989799202,3.17251,3152.1,3151.8,0.3169]
[1731989799508,3.17268,3151.9,3151.8,0.3169]
[1731989800087,3.17268,3151.9,3151.4,0.3031]
[1731989800088,3.17284,3151.8,3151.5,0.3169]
[1731989800608,3.17269,3151.9,3151.4,0.3169]
[1731989801000,3.489771,3152.1,3151.2,0.3169]
[1731989801195,3.17276,3151.9,3151.2,3.87072758]
[1731989801537,4.9505903,3152.1,3151.2,0.69741758]
[1731989801741,3.17269,3151.9,3151.4,0.3169]
[1731989802238,3.17249,3152.1,3151.4,3.49008]
[1731989802609,3.17249,3152.1,3151.4,4.19447176]
[1731989802807,6.34516,3152.0,3151.4,0.3169]
[1731989802997,3.17289,3151.7,3151.3,0.3169]
[1731989803193,3.17289,3151.7,3151.2,0.3169]
[1731989803194,3.17306,3151.6,3151.2,0.3169]
[1731989803792,3.17309,3151.5,3151.1,0.63108576]
[1731989804221,3.17309,3151.5,3151.2,0.3169]
[1731989804421,3.17289,3151.7,3151.2,0.3169]
[1731989804634,3.17289,3151.7,3150.8,3.49063]
[1731989804963,3.1732,3151.4,3150.8,3.49068]
[1731989805325,3.17321,3151.4,3150.8,0.3169]
[1731989805671,3.17321,3151.4,3151.1,0.3169]
[1731989806164,3.1731,3151.5,3151.1,0.3169]
[1731989807655,3.17289,3151.7,3151.1,3.49037]
[1731989807841,4.6333393,3151.8,3151.3,3.49012]
[1731989808042,4.6333393,3152.0,3151.3,3.49012]
[1731989808242,3.17291,3151.7,3151.3,0.3169]
[1731989808443,3.17291,3151.7,3151.3,0.67526196]
[1731989808755,3.1727,3151.9,3151.3,0.67526196]
[1731989809087,7.8060393,3151.9,3151.3,0.67526196]
[1731989809374,3.17283,3151.8,3151.3,0.67526196]
[1731989809575,3.17293,3151.7,3151.3,0.67526196]
[1731989809784,7.8060193,3151.9,3151.2,0.3169]
[1731989810077,3.1728,3151.8,3151.2,3.49027]
[1731989811481,7.80673714,3152.0,3151.2,3.49027]
[1731989811776,7.80673714,3152.0,3151.4,0.3169]
[1731989812082,3.97340935,3151.7,3151.4,0.3169]
[1731989812915,3.97340935,3151.6,3151.4,0.3169]
[1731989813290,3.97340935,3151.7,3151.4,0.3169]
[1731989813592,3.97340935,3151.6,3151.3,0.3169]
[1731989813779,3.97340935,3151.6,3151.3,0.665927]
[1731989814115,3.97340935,3151.7,3151.3,0.665927]
[1731989814585,3.97340935,3151.6,3151.3,0.665927]
[1731989814786,3.97441752,3151.6,3151.3,0.665927]
[1731989814973,3.65741752,3151.6,3151.3,0.349027]
[1731989815179,4.63682044,3152.1,3151.8,0.3169]
[1731989815524,4.63682044,3152.2,3151.9,3.17268]
[1731989815677,4.63682044,3152.3,3152.0,0.3169]
[1731989816178,3.17208,3152.5,3152.0,0.3169]
[1731989816179,4.63682044,3152.4,3152.0,0.3169]
[1731989816380,4.63682044,3152.4,3151.7,0.3169]
[1731989816581,7.80890044,3152.5,3151.9,0.3169]
[1731989816773,4.63682044,3152.4,3151.9,0.3169]
[1731989818419,7.80901044,3152.4,3151.9,0.3169]
[1731989819303,4.63682044,3152.3,3151.9,0.3169]
[1731989819507,7.80911044,3152.3,3151.7,0.3169]
[1731989819822,7.80934999,3152.3,3151.7,0.3169]
[1731989820081,3.17229,3152.3,3151.7,3.48972]
[1731989820284,7.80913999,3152.5,3151.9,3.48957]
[1731989820782,3.17218,3152.4,3151.9,0.3169]
[1731989820995,3.1723,3152.3,3151.9,0.3169]
[1731989821192,3.97499036,3152.0,3151.8,0.3169]
[1731989821689,3.17279,3151.8,3151.2,3.0]
[1731989821975,3.97520503,3151.6,3151.2,0.62783113]
[1731989822135,3.97520503,3151.5,3151.2,0.62783113]
[1731989822345,3.97520503,3151.6,3151.2,0.62783113]
[1731989822738,3.97520503,3151.5,3151.0,0.30648675]
[1731989822943,3.97520503,3151.4,3150.8,3.17379]
[1731989823141,7.14840503,3151.4,3150.9,3.0]
[1731989823392,7.14840503,3151.4,3150.5,3.17409]
[1731989823393,3.17346,3151.2,3150.5,3.17409]
[1731989823593,3.97520503,3151.0,3150.5,3.17409]
[1731989823797,3.97520503,3151.0,3150.5,3.808928]
[1731989824004,3.97520503,3151.0,3150.5,0.634838]
[1731989824410,3.97520503,3151.0,3150.5,3.808928]
[1731989824707,3.97520503,3151.0,3150.5,2.808928]
[1731989824902,3.97520503,3151.0,3150.3,3.80005126]
[1731989824903,7.14880503,3151.0,3150.3,3.80005126]
[1731989825106,3.97520503,3150.9,3150.3,4.18105639]
[1731989825272,3.97520503,3150.8,3150.3,1.00676639]
[1731989825477,3.97520503,3150.9,3150.4,0.41810664]
[1731989825661,3.97520503,3150.9,3150.3,0.62576126]
[1731989825866,3.97520503,3151.1,3150.4,3.17416]
[1731989826194,3.97520503,3151.1,3150.7,3.17389]
[1731989826357,3.97520503,3151.1,3150.7,3.1738]
[1731989826560,3.97520503,3151.1,3150.7,3.17384]
[1731989826878,3.97520503,3151.4,3151.0,3.49049]
[1731989827470,3.96990281,3151.4,3151.0,3.49049]
[1731989828101,3.96990281,3151.4,3150.6,3.06486746]
[1731989828102,3.96990281,3151.5,3150.9,0.3169]
[1731989828263,3.96990281,3151.6,3151.2,0.3169]
[1731989828467,3.96990281,3151.6,3151.5,0.3169]
[1731989828662,3.96990281,3151.8,3151.5,0.3169]
[1731989829262,3.96990281,3151.8,3151.4,3.17317]
[1731989829463,3.96990281,3151.8,3151.5,0.3169]
[1731989829664,3.96990281,3151.9,3151.5,0.3169]
[1731989830032,3.96990281,3151.8,3151.6,0.3169]
[1731989830503,7.14279281,3151.7,3151.6,0.3169]
[1731989830722,3.17289,3151.7,3151.6,0.3169]
[1731989831009,3.97111992,3151.8,3151.6,0.3169]
[1731989831364,3.97111992,3152.0,3151.7,0.3169]
[1731989831862,7.80400328,3152.2,3151.7,0.3169]
[1731989831863,3.97111992,3151.9,3151.7,0.3169]
[1731989832116,3.97121539,3151.8,3151.7,0.3169]
[1731989832478,3.97121539,3151.9,3151.5,0.3169]
[1731989832688,3.97121539,3152.0,3151.5,0.3169]
[1731989832926,3.97121539,3152.0,3151.7,0.3169]
[1731989833073,3.97121539,3152.0,3151.7,3.48978]
[1731989833522,3.97121539,3152.1,3151.7,3.48978]
[1731989833876,3.97121539,3152.1,3151.7,4.11488111]
[1731989834102,3.97121539,3152.1,3152.0,0.3169]
[1731989835021,3.65421539,3152.1,3151.8,0.3169]
[1731989835177,3.17254,3152.1,3151.8,0.3169]
[1731989835382,3.98295,3152.2,3151.8,0.3169]
[1731989835580,3.17245,3152.2,3151.8,0.3169]
[1731989835888,4.63308462,3152.3,3151.8,0.3169]
[1731989835889,3.17248,3152.1,3151.8,0.3169]
[1731989836087,4.63308462,3152.2,3151.6,0.3169]
[1731989836305,3.17279,3151.8,3151.6,0.3169]
[1731989836520,3.17265,3152.0,3151.6,0.3169]
[1731989836894,3.17285,3151.8,3151.6,0.3169]
[1731989837094,3.17289,3151.7,3151.2,0.3169]
[1731989837417,3.17265,3152.0,3151.2,0.3169]
[1731989837418,7.80569462,3152.0,3151.4,0.3169]
[1731989837715,3.17269,3151.9,3151.4,0.3169]
[1731989838223,3.17269,3151.9,3151.3,0.3169]
[1731989838881,3.1728,3151.8,3151.3,0.3169]
[1731989839082,3.98041,3151.6,3151.3,0.3169]
[1731989839308,3.98041,3151.6,3150.6,0.3169]
[1731989839309,5.03324349,3151.5,3150.6,0.3169]
[1731989839476,3.17359,3151.1,3150.6,0.3169]
[1731989839983,4.63520249,3151.2,3150.6,0.3169]
[1731989840199,3.17358,3151.1,3150.6,0.3169]
[1731989840419,3.17358,3151.1,3150.6,0.665999]
[1731989840697,7.80851249,3151.3,3150.6,3.839979]
[1731989841042,3.97105826,3151.0,3150.6,3.839979]
[1731989841194,3.97105826,3151.0,3150.8,0.3169]
[1731989841836,7.94217825,3151.0,3150.8,0.3169]
[1731989842203,3.97111999,3150.9,3150.7,0.3169]
[1731989842619,7.94217825,3151.0,3150.7,0.3169]
[1731989842794,3.97111999,3150.9,3150.7,0.3169]
[1731989843034,7.94217825,3151.0,3150.7,0.665991]
[1731989843233,7.94217825,3151.0,3150.7,0.3169]
[1731989843505,3.97111999,3150.9,3150.4,3.49104]
[1731989843811,2.64774728,3150.5,3150.4,4.17289064]
[1731989844408,2.64774728,3150.5,3150.4,3.85509064]
[1731989844935,2.33074728,3150.5,3150.4,3.85509064]
[1731989845162,2.33074728,3150.5,3150.4,3.53809064]
[1731989845340,3.3096841,3150.6,3150.5,3.49099]
[1731989845544,3.3096841,3150.9,3150.7,0.3169]
[1731989845838,3.3096841,3150.9,3150.7,3.49077]
[1731989846024,3.3096841,3150.9,3150.7,4.22695691]
[1731989846360,2.89597358,3150.9,3150.8,3.49069]
[1731989846750,3.97039713,3151.3,3151.1,0.3169]
[1731989846950,3.97039713,3151.3,3151.2,0.665944]
[1731989847252,3.97039713,3151.3,3151.2,0.697144]
[1731989847455,3.97039713,3151.3,3151.2,0.3481]
[1731989848021,7.80553103,3151.7,3151.2,0.3481]
[1731989848319,3.9708816,3151.5,3151.2,0.3481]
[1731989849081,3.9708816,3151.4,3151.2,0.3481]
[1731989849559,3.9708816,3151.4,3151.2,3.873639]
[1731989849861,3.9708816,3151.5,3151.2,3.52148]
[1731989850427,3.9708816,3151.5,3151.2,0.0312]
[1731989850629,3.9708816,3151.6,3151.5,3.48999]
[1731989850948,4.63264103,3151.8,3151.6,3.48989]
[1731989851114,4.63264103,3151.8,3151.6,3.52109]
[1731989851836,3.9708816,3151.9,3151.7,0.3169]
[1731989852020,3.17279,3151.8,3151.7,0.3481]
[1731989852861,7.80867283,3151.9,3151.7,0.0312]
[1731989853815,7.80802419,3151.9,3151.7,0.3481]
[1731989854465,4.63532419,3151.9,3151.7,0.3481]
[1731989854759,3.97355618,3151.8,3151.7,0.3481]
[1731989855282,3.31124643,3151.9,3151.8,3.48969]
[1731989855555,8.60888037,3152.2,3152.0,0.3169]
[1731989855756,7.94654457,3152.2,3152.0,3.872738]
[1731989855966,3.97298839,3152.2,3152.1,3.48938]
[1731989856260,3.97298839,3152.2,3152.1,3.52058]
[1731989856942,3.97298839,3152.2,3152.1,0.3481]
[1731989859058,3.99568,3152.2,3152.1,0.3481]
[1731989859364,1.53781784,3152.2,3151.7,0.3169]
[1731989859535,3.17272,3151.9,3151.7,0.3169]
[1731989860040,3.99429,3151.8,3151.7,0.3169]
[1731989860240,0.8215,3151.8,3151.7,0.3169]
[1731989860776,3.17322,3151.4,3150.9,0.3169]
[1731989860922,0.8215,3151.3,3150.7,0.3169]
[1731989861119,3.30905159,3150.9,3150.7,0.3169]
[1731989861339,3.30905159,3150.8,3150.7,0.3169]
[1731989861542,3.17347,3151.2,3150.7,0.34864703]
[1731989861543,3.1737,3150.9,3150.7,0.34864703]
[1731989861943,7.14456191,3150.9,3150.7,0.03174703]
[1731989862351,7.89505191,3150.8,3150.7,0.03174703]
[1731989863136,3.92419,3150.8,3150.7,0.03174703]
[1731989863475,8.55686223,3150.8,3150.7,0.03174703]
[1731989864903,11.55686223,3150.8,3150.7,0.03174703]
[1731989865057,12.39618884,3150.8,3150.7,0.03174703]
[1731989865259,14.32289212,3150.8,3150.7,0.03174703]
[1731989865460,8.85911125,3150.8,3150.7,0.03174703]
[1731989865695,14.32053841,3150.8,3150.7,0.03174703]
[1731989865901,8.85911125,3150.8,3150.7,0.03174703]
[1731989866901,14.31948918,3150.8,3150.7,0.03174703]
[1731989867190,8.85911125,3150.8,3150.7,0.03174703]
[1731989867563,14.31786828,3150.8,3150.7,0.03174703]
[1731989867949,14.87786828,3150.8,3150.7,0.03174703]
[1731989868146,9.41911125,3150.8,3150.7,0.03174703]
[1731989868694,14.87493429,3150.8,3150.7,0.03174703]
[1731989869563,9.41911125,3150.8,3150.7,0.03174703]
[1731989869897,9.40911125,3150.8,3150.7,0.03174703]
[1731989870984,9.41911125,3150.8,3150.7,0.03174703]
[1731989871391,9.40911125,3150.8,3150.7,0.03174703]
[1731989872755,13.47257644,3150.8,3150.7,0.03174703]
[1731989873096,6.92419,3150.8,3150.7,0.03174703]
[1731989873264,9.98905746,3150.8,3150.7,0.03174703]
[1731989873465,14.60252265,3150.8,3150.7,0.03174703]
[1731989873768,6.92419,3150.8,3150.7,0.03174703]
[1731989873991,10.8777972,3150.8,3150.7,0.03174703]
[1731989874187,3.7504,3150.8,3150.7,0.03174703]
[1731989874367,6.92419,3150.8,3150.7,0.03174703]
[1731989875085,6.17379,3150.8,3150.7,0.03174703]
[1731989875266,9.46867259,3150.8,3150.7,0.03174703]
[1731989875473,6.29488259,3150.8,3150.7,0.03174703]
[1731989875781,3.29488259,3150.8,3150.7,0.03174703]
[1731989875959,6.46867259,3150.8,3150.7,0.03174703]
[1731989876159,4.13801626,3150.8,3150.7,0.03174703]
[1731989878748,7.43273939,3150.8,3150.7,0.03174703]
[1731989879403,3.17379,3150.8,3150.7,0.03174703]
[1731989880643,3.95416578,3151.0,3150.6,0.3169]
[1731989880946,3.29552611,3151.0,3150.6,0.3169]
[1731989882345,6.46918611,3151.0,3150.4,0.3169]
[1731989882499,3.29552611,3150.9,3150.6,0.3169]
[1731989882707,3.29552611,3150.9,3150.6,0.34864703]
[1731989883201,3.29552611,3151.0,3150.6,0.34864703]
[1731989883423,3.29552611,3151.0,3150.6,0.03174703]
[1731989883629,3.29707257,3151.0,3150.6,0.03174703]
[1731989886944,3.29707257,3151.0,3150.7,0.3169]
[1731989887140,3.29707257,3151.0,3150.7,0.34864703]
[1731989887311,3.29707257,3150.9,3150.7,0.34864703]
[1731989887640,6.47082257,3150.9,3150.7,0.34864703]
[1731989887946,6.47082257,3150.9,3150.7,0.03174703]
[1731989888644,0.8213,3150.8,3150.7,0.03174703]
[1731989888942,6.99509,3150.8,3150.7,0.03174703]
[1731989889350,6.17379,3150.8,3150.7,0.03174703]
[1731989889552,3.29866078,3150.8,3150.4,0.3169]
[1731989889705,3.1736,3151.0,3150.4,0.666013]
[1731989889706,3.29866078,3150.9,3150.4,0.666013]
[1731989889903,3.29866078,3150.9,3150.4,0.3169]
[1731989890109,3.29866078,3150.8,3150.4,0.3169]
[1731989890346,6.47245078,3150.8,3150.4,0.3169]
[1731989890555,6.47245078,3150.8,3150.5,0.3169]
[1731989891631,3.29866078,3150.9,3150.3,0.3169]
[1731989891837,3.1742,3150.4,3150.3,0.3169]
[1731989892138,3.891157,3150.4,3150.3,0.3169]
[1731989892617,3.17444,3150.2,3149.6,0.3169]
[1731989893956,3.29747241,3150.6,3149.8,0.3169]
[1731989894264,6.47154241,3150.6,3149.8,3.52337703]
[1731989894470,6.47159241,3150.5,3149.9,0.3169]
[1731989894620,3.29747241,3150.4,3149.9,0.3169]
[1731989894811,3.29747241,3150.5,3149.9,0.3169]
[1731989895026,3.0,3151.0,3150.0,0.3169]
[1731989895027,3.9958,3150.1,3150.0,0.3169]
[1731989895394,6.47167241,3150.4,3150.0,0.34864703]
[1731989896072,6.47167241,3150.4,3150.0,0.03174703]
[1731989896776,3.29747241,3150.3,3150.0,0.03174703]
[1731989897579,3.29747241,3150.2,3150.0,0.03174703]
[1731989897880,3.29783515,3150.3,3150.0,0.03174703]
[1731989898175,3.29783515,3150.4,3150.0,0.03174703]
[1731989898549,3.29783515,3150.4,3150.0,0.34864703]
[1731989898747,3.29783515,3150.5,3150.0,4.19303873]
[1731989898964,3.29783515,3150.5,3150.0,3.52323703]
[1731989899801,3.29783515,3150.4,3150.0,0.03174703]
[1731989900181,3.29783515,3150.6,3150.3,0.3169]
[1731989900345,8.61168922,3151.2,3150.5,3.49099]
[1731989900346,3.29783515,3150.8,3150.5,3.49099]
[1731989900543,3.29783515,3150.9,3150.7,0.3169]
[1731989901038,3.29783515,3151.0,3150.7,3.52253703]
[1731989901862,3.29783515,3150.9,3150.7,0.03174703]
[1731989902444,3.30142565,3150.9,3150.7,0.03174703]
[1731989902902,4.62199591,3151.4,3150.7,0.03174703]
[1731989902903,3.30142565,3150.8,3150.7,0.03174703]
[1731989903045,3.30142565,3150.8,3150.7,0.34864703]
[1731989903241,9.47521565,3150.8,3150.7,0.34864703]
[1731989903448,3.17379,3150.8,3150.7,0.34864703]
[1731989904175,5.44329591,3150.9,3150.7,0.03174703]
[1731989904488,3.96701088,3150.9,3150.7,0.34864703]
[1731989904646,3.96701088,3150.8,3150.7,0.34864703]
[1731989904991,0.8213,3151.2,3150.7,0.34864703]
[1731989904992,3.65001088,3150.9,3150.7,0.34864703]
[1731989905648,4.62199591,3151.2,3150.8,3.17376]
[1731989905845,4.62199591,3151.3,3150.9,0.3169]
[1731989906897,4.62199591,3151.2,3150.8,0.03174703]
[1731989907304,7.80942999,3151.3,3150.8,0.03174703]
[1731989907666,4.63610999,3151.2,3150.8,0.03174703]
[1731989908614,4.63610999,3151.5,3151.2,0.3169]
[1731989908918,3.0,3151.7,3151.2,0.3169]
[1731989908919,4.63610999,3151.7,3151.2,3.52201703]
[1731989909061,4.63594421,3151.7,3151.4,0.3169]
[1731989909259,4.63594421,3152.0,3151.6,3.4898]
[1731989909476,4.63594421,3152.2,3152.0,3.48948]
[1731989909704,4.63594421,3152.4,3152.0,3.48948]
[1731989909992,4.63594421,3152.5,3152.1,3.17248]
[1731989910194,4.63594421,3152.6,3152.1,3.20422703]
[1731989910377,0.94693991,3152.6,3152.3,3.17228]
[1731989910574,4.63594421,3152.9,3152.4,3.17208]
[1731989910867,3.96958437,3153.0,3152.7,0.3169]
[1731989911179,3.30812213,3152.9,3152.7,3.52052703]
[1731989911514,8.6470091,3153.8,3152.9,0.3169]
[1731989911515,3.30442497,3153.1,3152.9,0.3169]